Workbook

Sheet Index
B1: ='Input | General'!$B$1 -> Essential Energy - Capital expenditure sharing scheme model - 2019-24
B2: Index
C4: Model index
C6: Sheet Name | D6: Sheet Description
C7: Input | General | D7: Inputs NSP name, regulatory years for the prior and forecast regulatory control period etc.
C8: Input | Inflation and Disc Rate | D8: Inputs the inflation and discount rate
C9: Input | Reported Capex | D9: Inputs the reported capital expenditure from the prior regulatory control period as well as the AER's forecast etc.
C10: Calc | CESS Revenue Increments | D10: Calculates the CESS payments from the prior regulatory control period
C11: Output | Models | D11: Outputs the CESS revenue increments needed as a post tax revenue model input
C12: Lookup | Tables | D12: Includes the lookup tables used within the CESS model.
C14: End

Sheet Input | General
B1: =$D$7&" - "&"Capital expenditure sharing scheme model - "&$D$8 -> Essential Energy - Capital expenditure sharing scheme model - 2019-24 | F1: Back to Index | G1: Key: | H1: Input | I1: External Link | J1: Internal Link
B2: Input | General
B4: Input | General
C6: Inputs | D6: Value
C7: NSP Name | D7: Essential Energy
C8: Determination years | D8: 2019-24
C10: Regulatory control period details
D11: Year 1 | E11: Year 2 | F11: Year 3 | G11: Year 4 | H11: Year 5
C12: Regulatory control period CESS applied in (regulatory years) | D12: 2014-15 | E12: 2015-16 | F12: 2016-17 | G12: 2017-18 | H12: 2018-19
C13: CESS to apply to this year's expenditure (Yes/No) | D13: Yes | E13: Yes | F13: Yes | G13: Yes | H13: Yes
C14: Actual or estimate year | D14: Actual | E14: Actual | F14: Actual | G14: Estimate | H14: Estimate
D16: Year 1 | E16: Year 2 | F16: Year 3 | G16: Year 4 | H16: Year 5
C17: Regulatory control period CESS revenue increment applied in (regulatory years) | D17: 2019-20 | E17: 2020-21 | F17: 2021-22 | G17: 2022-23 | H17: 2023-24
C18: Regulatory control period prior to CESS applied in (regulatory years) | D18: 2014-15 | E18: 2015-16 | F18: 2016-17 | G18: 2017-18 | H18: 2018-19
B20: End

Sheet Input | Inflation and Disc Rate
B1: ='Input | General'!$B$1 -> Essential Energy - Capital expenditure sharing scheme model - 2019-24 | G1: Back to Index | H1: Key: | I1: Input | J1: External Link | K1: Internal Link
C2: Input | Inflation and Discount rate
C4: Input | Inflation
D6: Source | E6: Unit
F7: ='Lookup | Tables'!$E$27 -> 2013-14 | G7: ='Lookup | Tables'!$E$28 -> 2014-15 | H7: ='Lookup | Tables'!$E$29 -> 2015-16 | I7: ='Lookup | Tables'!$E$30 -> 2016-17 | J7: ='Lookup | Tables'!$E$31 -> 2017-18 | K7: ='Lookup | Tables'!$E$32 -> 2018-19 | L7: ='Lookup | Tables'!$E$33 -> 2019-20 | M7: ='Lookup | Tables'!$E$34 -> 2020-21 | N7: ='Lookup | Tables'!$E$35 -> 2021-22 | O7: ='Lookup | Tables'!$E$36 -> 2022-23 | P7: ='Lookup | Tables'!$E$37 -> 2023-24
C8: Actual CPI Inflation Rate | D8: NSP | E8: Per cent | G8: 0.0245 | H8: 0.02487922705 | I8: 0.01508366722 | J8: 0.01276990945
C9: Forecast CPI Inflation Rate | D9: NSP | E9: Per cent | K9: 0.0195 | L9: 0.025 | M9: =L9 -> 0.025 | N9: 0.025 | O9: 0.025 | P9: 0.025
C10: ="CPI Index (base year "&F7&")" -> CPI Index (base year 2013-14) | D10: NSP | E10: Index | F10: 1 | G10: =IF(G7<>"",(F10*(1+G8)),"") -> 1.0245 | H10: =IF(H7<>"",(G10*(1+H8)),"") -> 1.049988768 | I10: 1.065826449 | J10: 1.079436957 | K10: =IF(K7<>"",(J10*(1+K9)),"") -> 1.100485977 | L10: 1.127998127 | M10: 1.15619808 | N10: 1.185103032 | O10: 1.214730608 | P10: 1.245098873
C13: Actual CPI Inflation Rate | D13: AER | E13: Per cent | G13: =G8 -> 0.0245 | H13: =H8 -> 0.02487922705 | I13: =I8 -> 0.01508366722 | J13: =J8 -> 0.01276990945
C14: Forecast CPI Inflation Rate | D14: AER | E14: Per cent | K14: =K9 -> 0.0195 | L14: =L9 -> 0.025 | M14: 0.025 | N14: 0.025 | O14: 0.025 | P14: 0.025
C15: ="CPI Index (base year "&F7&")" -> CPI Index (base year 2013-14) | D15: AER | E15: Index | F15: 1 | G15: =IF(G7<>"",(F15*(1+G13)),"") -> 1.0245 | H15: =IF(H7<>"",(G15*(1+H13)),"") -> 1.049988768 | I15: 1.065826449 | J15: 1.079436957 | K15: =IF(K7<>"",(J15*(1+K14)),"") -> 1.100485977 | L15: 1.127998127 | M15: 1.15619808 | N15: 1.185103032 | O15: 1.214730608 | P15: 1.245098873
C17: Input | Discount rate
D19: Source | E19: Unit | G19: ='Lookup | Tables'!$E$28 -> 2014-15 | H19: ='Lookup | Tables'!$E$29 -> 2015-16 | I19: ='Lookup | Tables'!$E$30 -> 2016-17 | J19: ='Lookup | Tables'!$E$31 -> 2017-18 | K19: ='Lookup | Tables'!$E$32 -> 2018-19 | L19: ='Lookup | Tables'!$E$33 -> 2019-20 | M19: ='Lookup | Tables'!$E$34 -> 2020-21 | N19: ='Lookup | Tables'!$E$35 -> 2021-22 | O19: ='Lookup | Tables'!$E$36 -> 2022-23 | P19: ='Lookup | Tables'!$E$37 -> 2023-24
C20: Real Vanilla WACC | D20: AER | E20: Per cent | G20: 0.04262520733 | H20: 0.04199815337 | I20: 0.04113948856 | J20: 0.04026987289 | K20: 0.03923383749 | L20: 0.03748292683 | M20: 0.03654634146 | N20: 0.03555121951 | O20: 0.03455609756 | P20: 0.0336195122
C22: Nominal Vanilla WACC (fixed, real, time varying) | D22: Calculated | E22: Per cent | G22: =IF(AND('Input | Inflation and Disc Rate'!H8<>"",G20<>""),((1+G20)*(1+'Input | Inflation and Disc Rate'!H8)-1),"") -> 0.06856491659 | H22: =IF(AND(H8<>"",H20<>""),((1+H20)*(1+H8)-1),"") -> 0.06792226202 | I22: =IF(AND(I8<>"",I20<>""),((1+I20)*(1+I8)-1),"") -> 0.05684369013 | J22: =IF(AND(J8<>"",J20<>""),((1+J20)*(1+J8)-1),"") -> 0.05355402497 | K22: =IF(AND(K14<>"",K20<>""),((1+K20)*(1+K14)-1),"") -> 0.05949889732 | L22: =IF(AND(L14<>"",L20<>""),((1+L20)*(1+L14)-1),"") -> 0.06342 | M22: 0.06246 | N22: 0.06144 | O22: 0.06042 | P22: 0.05946
B24: End

Sheet Input | Reported Capex
B1: ='Input | General'!$B$1 -> Essential Energy - Capital expenditure sharing scheme model - 2019-24 | H1: Back to Index | I1: Key: | J1: Input | K1: External Link | L1: Internal Link
B2: Input | Capex
B4: Input | Capex Allowance
D6: Source | E6: Unit | F6: Basis | H6: =IF('Input | General'!D$13="Yes", 'Input | General'!D$12, "") -> 2014-15 | I6: =IF('Input | General'!E$13="Yes", 'Input | General'!E$12, "") -> 2015-16 | J6: =IF('Input | General'!F$13="Yes", 'Input | General'!F$12, "") -> 2016-17 | K6: =IF('Input | General'!G$13="Yes", 'Input | General'!G$12, "") -> 2017-18 | L6: =IF('Input | General'!H$13="Yes", 'Input | General'!H$12, "") -> 2018-19
C8: Total capex allowance | D8: AER | E8: $millions | F8: 2013-14 | I8: 492.861927 | J8: 481.1696018 | K8: 455.594849 | L8: 432.6376595
C9: Total excludable capex | D9: AER | E9: $millions | F9: 2013-14 | I9: 0 | J9: 0 | K9: 0 | L9: 0
C11: Total capex allowance applicable to CESS | D11: Calculated | E11: $millions | F11: 2013-14 | H11: =IF(H6="", "", H8-H9) -> 0 | I11: =IF(I6="", "", I8-I9) -> 492.861927 | J11: =IF(J6="", "", J8-J9) -> 481.1696018 | K11: 455.594849 | L11: 432.6376595
B13: Input | Actual / Estimate Capex
D15: Source | E15: Unit | F15: Basis | H15: =IF('Input | General'!D$13="Yes", 'Input | General'!D$12, "") -> 2014-15 | I15: =IF('Input | General'!E$13="Yes", 'Input | General'!E$12, "") -> 2015-16 | J15: =IF('Input | General'!F$13="Yes", 'Input | General'!F$12, "") -> 2016-17 | K15: =IF('Input | General'!G$13="Yes", 'Input | General'!G$12, "") -> 2017-18 | L15: =IF('Input | General'!H$13="Yes", 'Input | General'!H$12, "") -> 2018-19
C17: Total capex | D17: AER | E17: $millions | F17: nominal | I17: 405.3010729 | J17: 400.0842069 | K17: 436.6327899 | L17: 478.7312835
C18: Total excludable capex | D18: AER | E18: $millions | F18: nominal | I18: 0 | J18: 0 | K18: 0 | L18: 0
C20: Total actual capex applicable to CESS | D20: Calculated | E20: $millions | F20: nominal | H20: =IF(H15="", "", H17-H18) -> 0 | I20: =IF(I15="", "", I17-I18) -> 405.3010729 | J20: =IF(J15="", "", J17-J18) -> 400.0842069 | K20: =IF(K15="", "", K17-K18) -> 436.6327899 | L20: =IF(L15="", "", L17-L18) -> 478.7312835
B22: Input | Capex Deferred to following regulatory period
H24: ='Input | General'!D17 -> 2019-20 | I24: ='Input | General'!E17 -> 2020-21 | J24: ='Input | General'!F17 -> 2021-22 | K24: ='Input | General'!G17 -> 2022-23 | L24: ='Input | General'!H17 -> 2023-24
C26: Capex deferred and re-proposed | D26: NSP | E26: $millions | F26: nominal | H26: 0 | I26: 0 | J26: 0 | K26: 0 | L26: 0
C27: Capex deferred and re-proposed | D27: Calculated | E27: $millions | F27: 2013-14 | H27: =IF(H26<>"",H26/'Input | Inflation and Disc Rate'!K10,"") -> 0 | I27: =IF(I26<>"",I26/'Input | Inflation and Disc Rate'!L10,"") -> 0 | J27: =IF(J26<>"",J26/'Input | Inflation and Disc Rate'!M10,"") -> 0 | K27: =IF(K26<>"",K26/'Input | Inflation and Disc Rate'!N10,"") -> 0 | L27: =IF(L26<>"",L26/'Input | Inflation and Disc Rate'!O10,"") -> 0
C28: Capex deferred and re-proposed | D28: AER | E28: $millions | F28: nominal | H28: =IF(H26<>"",H27*'Input | Inflation and Disc Rate'!K15,"") -> 0 | I28: =IF(I26<>"",I27*'Input | Inflation and Disc Rate'!L15,"") -> 0 | J28: =IF(J26<>"",J27*'Input | Inflation and Disc Rate'!M15,"") -> 0 | K28: =IF(K26<>"",K27*'Input | Inflation and Disc Rate'!N15,"") -> 0 | L28: =IF(L26<>"",L27*'Input | Inflation and Disc Rate'!O15,"") -> 0
B30: End

Sheet Calc | CESS Revenue Increments
B1: ='Input | General'!$B$1 -> Essential Energy - Capital expenditure sharing scheme model - 2019-24 | J1: Back to Index | K1: Key: | L1: Input | M1: External Link | N1: Internal Link
B2: Input | CESS Payments
B4: Calc | NPV of CESS payments
C6: Regulatory period 1
C7: Year | D7: =IF('Input | General'!D$13="Yes",'Input | General'!D$12,"") -> 2014-15 | E7: =IF('Input | General'!E$13="Yes",'Input | General'!E$12,"") -> 2015-16 | F7: =IF('Input | General'!F$13="Yes",'Input | General'!F$12,"") -> 2016-17 | G7: =IF('Input | General'!G$13="Yes",'Input | General'!G$12,"") -> 2017-18 | H7: =IF('Input | General'!H$13="Yes",'Input | General'!H$12,"") -> 2018-19
C8: Discount rate: | E8: ='Input | Inflation and Disc Rate'!H22 -> 0.06792226202 | F8: ='Input | Inflation and Disc Rate'!I22 -> 0.05684369013 | G8: ='Input | Inflation and Disc Rate'!J22 -> 0.05355402497 | H8: ='Input | Inflation and Disc Rate'!K22 -> 0.05949889732
C9: Capex allowance (nominal) | E9: ='Input | Reported Capex'!I11*'Input | Inflation and Disc Rate'!H$15*(1+'Input | Inflation and Disc Rate'!H$20)^0.5 -> 528.2547352 | F9: ='Input | Reported Capex'!J11*'Input | Inflation and Disc Rate'!I$15*(1+'Input | Inflation and Disc Rate'!I$20)^0.5 -> 523.2860238 | G9: ='Input | Reported Capex'!K11*'Input | Inflation and Disc Rate'!J$15*(1+'Input | Inflation and Disc Rate'!J$20)^0.5 -> 501.5902646 | H9: ='Input | Reported Capex'!L11*'Input | Inflation and Disc Rate'!K$15*(1+'Input | Inflation and Disc Rate'!K$20)^0.5 -> 485.3616663
C10: Actual capex (nominal) | E10: ='Input | Reported Capex'!I20*(1+E$8)^0.5 -> 418.839443 | F10: ='Input | Reported Capex'!J20*(1+F$8)^0.5 -> 411.2981799 | G10: ='Input | Reported Capex'!K20*(1+G$8)^0.5 -> 448.1720332 | H10: ='Input | Reported Capex'!L20*(1+H$8)^0.5 -> 492.7675068
C11: Underspend | E11: =IF(E8<>"",(E9-E10),"") -> 109.4152923 | F11: =IF(F8<>"",(F9-F10),"") -> 111.9878439 | G11: =IF(G8<>"",(G9-G10),"") -> 53.41823144 | H11: =IF(H8<>"",(H9-H10),"") -> -7.405840504
C12: Year 1 benefit
C13: Year 2 benefit | F13: =($E$11+SUM($E13:E13))*F$8 -> 6.219568968 | G13: =($E$11+SUM($E13:F13))*G$8 -> 6.192712245 | H13: =($E$11+SUM($E13:G13))*H$8 -> 7.248606284
C14: Year 3 benefit | G14: =($F$11+SUM($F14:F14))*G$8 -> 5.997399789 | H14: =($F$11+SUM($F14:G14))*H$8 -> 7.0199919
C15: Year 4 benefit | H15: =($G$11+SUM($G15:G15))*H$8 -> 3.178325867
C16: Year 5 benefit
C17: Total financing benefit | E17: =SUM(E12:E16) -> 0 | F17: =SUM(F12:F16) -> 6.219568968 | G17: 12.19011203 | H17: 17.44692405
C18: Discount factor (end of year)** | E18: =F18*(1+F$8) -> 1.17969049 | F18: =G18*(1+G$8) -> 1.116239328 | G18: =H18*(1+H$8) -> 1.059498897 | H18: 1
C19: NPV underspend | E19: =E11*E18 -> 129.0761798 | F19: =F11*F18 -> 125.0052356 | G19: =G11*G18 -> 56.59655731 | H19: =H11*H18 -> -7.405840504
C20: NPV financing benefit | E20: =E17*E18 -> 0 | F20: =F17*F18 -> 6.942527484 | G20: =G17*G18 -> 12.91541026 | H20: =H17*H18 -> 17.44692405
C22: Regulatory period 2
C23: Year | D23: ='Input | General'!$D$17 -> 2019-20 | E23: ='Input | General'!$E$17 -> 2020-21 | F23: ='Input | General'!$F$17 -> 2021-22 | G23: ='Input | General'!$G$17 -> 2022-23 | H23: ='Input | General'!$H$17 -> 2023-24
C24: Discount rate: | D24: ='Input | Inflation and Disc Rate'!L$22 -> 0.06342 | E24: ='Input | Inflation and Disc Rate'!M$22 -> 0.06246 | F24: ='Input | Inflation and Disc Rate'!N$22 -> 0.06144 | G24: ='Input | Inflation and Disc Rate'!O$22 -> 0.06042 | H24: ='Input | Inflation and Disc Rate'!P$22 -> 0.05946
C25: Increase in forecast capex in regulatory period 2 attributable to capex deferred in regulatory period 1 | D25: ='Input | Reported Capex'!H28 -> 0 | E25: ='Input | Reported Capex'!I28 -> 0 | F25: ='Input | Reported Capex'!J28 -> 0 | G25: ='Input | Reported Capex'!K28 -> 0 | H25: ='Input | Reported Capex'!L28 -> 0
C26: Discount factor (middle of year 5) | D26: =1/(1+D24)^(0.5) -> 0.9697227581 | E26: =1/((1+E24)^(0.5)*(1+D24)) -> 0.9123025354 | F26: =1/((1+F24)^(0.5)*(1+E24)*(1+D24)) -> 0.8590824809 | G26: =1/((1+G24)^(0.5)*(1+F24)*(1+E24)*(1+D24)) -> 0.8097448278 | H26: =1/((1+H24)^(0.5)*(1+G24)*(1+F24)*(1+E24)*(1+D24)) -> 0.7639535359
C27: NPV of increase in forecast capex from deferred capex | D27: =D25*D26 -> 0 | E27: =E25*E26 -> 0 | F27: 0 | G27: 0 | H27: 0
C29: CESS calculation (post-adjustment)
C30: Total underspend (NPV) adjusted for deferrals | D30: =SUM(D19:H19)-SUM(D27:H27) -> 303.2721322
C31: Relevant sharing ratio | D31: 0.3
C32: Consumer share | D32: =(1-D31)*D30 -> 212.2904925
C33: NSP share | D33: =D31*D30 -> 90.98163965
C34: Total NSP financing benefit (NPV) | D34: =SUM(D20:H20) -> 37.30486179
C35: NPV of CESS payments (post-adjustment) | D35: =D33-D34 -> 53.67677785
B37: Calc | Total CESS Payments
D39: ='Input | General'!D17 -> 2019-20 | E39: ='Input | General'!E17 -> 2020-21 | F39: ='Input | General'!F17 -> 2021-22 | G39: ='Input | General'!G17 -> 2022-23 | H39: ='Input | General'!H17 -> 2023-24
C40: =CONCATENATE("CESS Payment Per Year ($", 'Output | Models'!F4," million)") -> CESS Payment Per Year ($2018-19 million) | D40: =-PMT('Input | Inflation and Disc Rate'!L20,5,'Calc | CESS Revenue Increments'!$D$35) -> 11.97212994 | E40: =-PMT('Input | Inflation and Disc Rate'!M20,5,'Calc | CESS Revenue Increments'!$D$35) -> 11.94051921 | F40: =-PMT('Input | Inflation and Disc Rate'!N20,5,'Calc | CESS Revenue Increments'!$D$35) -> 11.90697179 | G40: =-PMT('Input | Inflation and Disc Rate'!O20,5,'Calc | CESS Revenue Increments'!$D$35) -> 11.87346461 | H40: =-PMT('Input | Inflation and Disc Rate'!P20,5,'Calc | CESS Revenue Increments'!$D$35) -> 11.84196524
C42: =CONCATENATE("Total CESS Payment ($", 'Output | Models'!F5," million)") -> Total CESS Payment ($ million) | D42: =SUM(D40:H40) -> 59.53505079
C44: Notes
C45: * Capex is assumed to occur mid-year. Hence, a mid-year discount rate is required for capex allowance, actual capex and underspend.
C46: ** The financing benefit is calculated on an end of year basis. Hence, an end of year discount rate is required.
B48: End

Sheet Output | Models
B1: ='Input | General'!$B$1 -> Essential Energy - Capital expenditure sharing scheme model - 2019-24 | J1: Back to Index | K1: Key: | L1: Input | M1: External Link | N1: Internal Link
B2: Output models
B4: Inputs for Post Tax Revenue Model | E4: $millions | F4: 2018-19 | J4: Note. The dollar base should be consistent with the post tax revenue model
C6: Revenue Adjustments | D6: Source | E6: Unit | F6: Basis | J6: ='Calc | CESS Revenue Increments'!D39 -> 2019-20 | K6: ='Calc | CESS Revenue Increments'!E39 -> 2020-21 | L6: ='Calc | CESS Revenue Increments'!F39 -> 2021-22 | M6: ='Calc | CESS Revenue Increments'!G39 -> 2022-23 | N6: ='Calc | CESS Revenue Increments'!H39 -> 2023-24 | O6: Total
C8: CESS increments as per NER 6A.5.4(a)(5) | D8: Calc | CESS Revenue Increments | E8: =$E$4 -> $millions | F8: =$F$4 -> 2018-19 | J8: ='Calc | CESS Revenue Increments'!D40 -> 11.97212994 | K8: ='Calc | CESS Revenue Increments'!E40 -> 11.94051921 | L8: ='Calc | CESS Revenue Increments'!F40 -> 11.90697179 | M8: ='Calc | CESS Revenue Increments'!G40 -> 11.87346461 | N8: ='Calc | CESS Revenue Increments'!H40 -> 11.84196524 | O8: =SUM(J8:N8) -> 59.53505079
B11: End

Sheet Lookup | Tables
B1: ='Input | General'!$B$1 -> Essential Energy - Capital expenditure sharing scheme model - 2019-24 | H1: Back to Index | I1: Key: | J1: Input | K1: External Link | L1: Internal Link
B2: Lookup | Tables
B4: Unit Denominations
C6: Denominations | E6: Ref
C7: Dollars | E7: $dollars
C8: Thousands | E8: $000
C9: Millions | E9: $millions
C11: Actual | E11: Actual
C12: Estimate | E12: Estimate
C13: not applicable | E13: n/a
B16: Years
C18: =B16 -> Years | E18: Ref
C19: not applicable | E19: n/a
C20: nominal | E20: nominal
C21: 2007-08 | E21: 2007-08
C22: 2008-09 | E22: 2008-09
C23: 2009-10 | E23: 2009-10
C24: 2010-11 | E24: 2010-11
C25: 2011-12 | E25: 2011-12
C26: 2012-13 | E26: 2012-13
C27: 2013-14 | E27: 2013-14
C28: 2014-15 | E28: 2014-15
C29: 2015-16 | E29: 2015-16
C30: 2016-17 | E30: 2016-17
C31: 2017-18 | E31: 2017-18
C32: 2018-19 | E32: 2018-19
C33: 2019-20 | E33: 2019-20
C34: 2020-21 | E34: 2020-21
C35: 2021-22 | E35: 2021-22
C36: 2022-23 | E36: 2022-23
C37: 2023-24 | E37: 2023-24
B39: End
